bitfinex/quotes_ETHUSD_20251031
["timestamp","ask_amount","ask_price","bid_price","bid_amount"]
[1761893031803,0.50550399,3833.5,3832.9,0.002]
[1761893031804,2.23165447,3833.2,3832.9,0.002]
[1761893032007,7.86984438,3833.2,3832.9,0.002]
[1761893032300,9.18250586,3833.2,3832.9,0.002]
[1761893032476,10.2030324,3833.2,3832.9,0.002]
[1761893032681,9.83474164,3833.2,3832.9,0.002]
[1761893035906,35.5014344,3833.2,3832.9,0.002]
[1761893036118,35.82445855,3833.2,3832.9,0.002]
[1761893036312,35.82445855,3833.2,3833.1,1e-08]
[1761893036313,35.45616779,3833.2,3833.1,1e-08]
[1761893036470,3.63142976,3833.0,3832.9,0.002]
[1761893036675,36.47724748,3833.0,3832.9,0.002]
[1761893036981,36.9442653,3833.0,3832.9,0.002]
[1761893037184,42.36852796,3833.0,3831.1,0.11458404]
[1761893037384,42.36852796,3833.0,3831.1,0.01]
[1761893037385,0.09999999,3831.2,3831.1,0.01]
[1761893037614,1.92710376,3831.2,3831.1,0.01]
[1761893037928,0.09999999,3830.2,3830.1,0.01]
[1761893038128,1.49967999,3830.2,3830.1,0.01]
[1761893038431,13.41286381,3830.2,3830.1,0.01]
[1761893038611,10.23281868,3830.2,3830.1,0.01]
[1761893038817,10.23281868,3830.2,3829.1,0.01]
[1761893038818,0.09999999,3829.2,3829.1,0.01]
[1761893039184,1.41906218,3830.0,3829.1,0.01]
[1761893039185,0.09999999,3829.5,3829.1,0.01]
[1761893039389,0.09999999,3829.2,3829.1,0.01]
[1761893040121,0.11938217,3829.2,3829.1,0.01]
[1761893040629,0.09999999,3829.2,3829.1,0.01]
[1761893041217,0.09999999,3829.4,3829.2,1.82805808]
[1761893041527,0.1981,3831.1,3829.3,0.18380581]
[1761893041528,0.09999999,3829.6,3829.3,0.18380581]
[1761893041763,0.01938218,3831.0,3829.3,2.03789928]
[1761893041764,0.01938218,3830.5,3829.3,2.03789928]
[1761893041884,4.50050842,3830.4,3829.3,0.18380581]
[1761893042086,0.01938218,3830.9,3829.1,0.01]
[1761893042087,0.01938218,3830.3,3829.1,4.51050842]
[1761893042388,0.09999999,3829.9,3829.8,1.8277388]
[1761893042613,0.09999999,3830.1,3829.7,1.82781364]
[1761893042789,0.09999999,3829.9,3829.8,1.82776519]
[1761893043000,0.09999999,3830.1,3829.3,1.82799374]
[1761893043299,1.82730731,3830.8,3829.3,1.82799374]
[1761893043300,0.09999999,3829.8,3829.4,0.18379937]
[1761893043889,0.09999999,3829.8,3829.7,1.82781941]
[1761893044607,0.09999999,3829.8,3829.6,1.82786454]
[1761893044807,0.09999999,3829.8,3829.4,0.18379937]
[1761893045010,0.09999999,3829.8,3829.6,1.82782393]
[1761893045322,0.09999999,3829.8,3829.7,2.02898174]
[1761893045923,0.09999999,3830.1,3829.7,0.20116233]
[1761893046089,0.09999999,3829.8,3829.6,1.82785814]
[1761893047113,0.09999999,3829.8,3829.4,1.82795052]
[1761893047301,0.09999999,3829.8,3829.7,0.1304]
[1761893048611,0.01938218,3829.8,3829.7,0.1304]
[1761893048800,0.11938217,3829.8,3829.7,0.1304]
[1761893048991,0.09999999,3829.8,3829.7,0.1304]
[1761893049419,0.09999999,3829.6,3829.3,0.002]
[1761893049624,0.09999999,3829.6,3829.5,0.1304]
[1761893050531,0.09999999,3829.8,3829.5,0.1304]
[1761893050729,0.09999999,3829.6,3829.5,0.1304]
[1761893053052,0.09999999,3829.9,3829.5,1.95831487]
[1761893053213,0.01938218,3830.3,3829.6,1.853973]
[1761893053416,0.09999999,3829.9,3829.8,1.95813018]
[1761893054126,0.09999999,3829.9,3829.8,0.1304]
[1761893056329,0.09999999,3829.9,3829.8,1.95817168]
[1761893056498,0.09999999,3829.9,3829.8,0.1304]
[1761893057227,0.09999999,3829.9,3829.8,1.95817168]
[1761893057433,0.09999999,3829.9,3829.8,2.16702885]
[1761893060264,0.09999999,3829.9,3829.8,2.08857168]
[1761893063358,0.09999999,3829.9,3829.8,1.95817168]
[1761893070950,0.09999999,3829.9,3829.8,0.1304]
[1761893071148,0.59189999,3829.9,3829.8,0.1304]
[1761893071352,0.09999999,3829.9,3829.8,0.1304]
[1761893072384,0.09999999,3829.9,3829.8,1.95817168]
[1761893073499,0.09999999,3829.9,3829.8,0.1304]
[1761893074467,0.09999999,3829.9,3829.8,1.95817168]
[1761893075800,0.09999999,3829.9,3829.8,0.1304]
[1761893077374,0.09999999,3829.9,3829.8,1.95817168]
[1761893078499,0.09999999,3829.9,3829.8,0.1304]
[1761893079806,0.09999999,3829.9,3829.8,1.95817168]
[1761893079985,0.09999999,3829.9,3829.8,1.96017168]
[1761893080191,1.28449999,3829.9,3829.8,0.1324]
[1761893080598,0.78859999,3829.9,3829.8,0.1324]
[1761893080795,0.09999999,3829.9,3829.8,0.1324]
[1761893081012,0.09999999,3829.9,3829.8,1.96017168]
[1761893084413,0.001,3830.1,3829.9,1.82771304]
[1761893084619,0.09999999,3830.0,3829.9,1.82771304]
[1761893085031,0.09999999,3830.0,3829.9,1.95811304]
[1761893087199,0.09999999,3830.0,3829.9,0.1304]
[1761893087403,0.09999999,3830.0,3829.9,1.95812396]
[1761893088006,0.10099999,3830.1,3830.0,1.82767624]
[1761893089536,0.10099999,3830.1,3829.9,1.95811504]
[1761893089694,0.001,3830.1,3829.9,1.95811504]
[1761893089894,0.001,3830.1,3830.0,1.82767624]
[1761893090234,0.10099999,3830.1,3830.0,1.82767624]
[1761893091303,0.10099999,3830.1,3829.9,1.95812317]
[1761893091738,0.10099999,3830.1,3830.0,1.82767624]
[1761893092635,1.08569999,3830.1,3829.9,0.1304]
[1761893093323,0.10099999,3830.1,3829.9,0.1304]
[1761893093719,0.10099999,3830.1,3829.9,1.95810921]
[1761893093924,0.59329999,3830.1,3829.9,1.95810921]
[1761893094439,0.4924,3830.0,3829.9,0.1304]
[1761893094647,0.10099999,3830.1,3829.9,0.1304]
[1761893095505,0.10099999,3830.1,3829.9,1.95811641]
[1761893096739,0.59329999,3830.1,3829.9,1.95811641]
[1761893099135,0.4924,3830.0,3829.9,0.1304]
[1761893099637,0.9847,3830.0,3829.9,0.1304]
[1761893099840,0.9847,3830.0,3829.9,0.1324]
[1761893100240,0.9847,3830.0,3829.9,1.96012396]
[1761893100443,0.4924,3830.0,3829.9,0.1324]
[1761893100807,0.9847,3830.0,3829.9,0.1324]
[1761893101207,0.9847,3830.0,3829.9,1.96012396]
[1761893101413,0.10099999,3830.1,3830.0,1.82767624]
[1761893101614,0.59329999,3830.1,3829.9,0.1324]
[1761893101838,0.09999999,3830.0,3829.9,1.96011704]
[1761893102048,0.10099999,3830.1,3830.0,1.82767624]
[1761893102537,0.10099999,3830.1,3830.0,2.2066583]
[1761893102538,0.001,3830.1,3830.0,2.2066583]
[1761893102715,0.001,3830.1,3830.0,2.23276796]
[1761893105323,0.001,3830.1,3830.0,2.36316796]
[1761893106018,0.001,3830.5,3830.4,1.82748538]
[1761893106226,0.001,3830.5,3830.4,9.5571636]
[1761893106432,0.001,3830.5,3830.4,9.66145667]
[1761893109981,0.01,3831.7,3830.8,2.23279855]
[1761893110283,0.01,3831.7,3830.8,9.19146589]
[1761893110465,0.01,3831.7,3830.8,10.39764487]
[1761893113360,0.01,3831.7,3830.8,9.3658982]
[1761893114382,0.01,3831.7,3830.8,4.45925773]
[1761893114691,0.01,3831.7,3830.8,7.72811102]
[1761893115997,0.6932,3830.9,3830.4,0.36550415]
[1761893116192,0.4924,3830.5,3829.8,0.002]
[1761893116394,0.4924,3830.5,3830.4,1.82748538]
[1761893116756,0.9903,3830.5,3830.4,1.82748538]
[1761893117709,0.4924,3830.5,3830.4,1.82748538]
[1761893117911,0.9903,3830.5,3830.4,1.82748538]
[1761893118681,0.9913,3830.5,3830.4,1.82748538]
[1761893119293,0.9913,3830.5,3830.0,0.002]
[1761893119498,0.4682,3830.1,3830.0,0.002]
[1761893119793,0.4682,3830.1,3830.0,1.82966827]
[1761893120015,0.9591,3830.1,3830.0,1.82966827]
[1761893120586,0.001,3830.5,3830.0,1.82966827]
[1761893120587,0.001,3830.5,3830.4,1.82748538]
[1761893120883,0.001,3830.5,3830.4,1.85359231]
[1761893121506,0.001,3830.5,3830.4,1.82748538]
[1761893121507,0.9812,3830.5,3830.4,1.82748538]
[1761893122622,0.9812,3830.5,3830.3,1.82749101]
[1761893122808,0.4909,3830.4,3830.3,1.82749101]
[1761893123014,0.9802,3830.4,3830.3,1.82749101]
[1761893123545,0.9802,3830.4,3830.0,0.002]
[1761893123821,0.4893,3830.1,3830.0,0.002]
[1761893124388,0.9802,3830.1,3830.0,0.1324]
[1761893124924,0.9802,3830.1,3830.0,1.96007624]
[1761893125124,0.09999999,3830.4,3830.3,1.82753309]
[1761893125494,1.08019999,3830.4,3830.3,1.95793309]
[1761893126826,1.08019999,3830.4,3830.3,0.1304]
[1761893127026,1.08019999,3830.4,3830.3,1.95793309]
[1761893127430,1.08019999,3830.4,3830.3,0.1304]
[1761893128922,1.37299357,3830.4,3830.3,0.1304]
[1761893131000,1.37299357,3830.4,3830.0,0.002]
[1761893131301,0.4893,3830.1,3830.0,0.002]
[1761893131500,0.58929999,3830.1,3830.0,0.002]
[1761893131720,1.08019999,3830.1,3830.0,0.1324]
[1761893132745,1.08019999,3830.1,3830.0,0.002]
[1761893132746,1.48570399,3830.1,3830.0,0.002]
[1761893132943,1.77771439,3830.1,3830.0,0.002]
[1761893133244,3.60534291,3830.1,3830.0,0.002]
[1761893133615,3.62472509,3830.1,3830.0,0.002]
[1761893133815,1.79709657,3830.1,3830.0,0.002]
[1761893134552,1.22998217,3830.1,3830.0,0.002]
[1761893134725,1.08019999,3830.1,3830.0,0.002]
[1761893135311,0.9802,3830.1,3830.0,0.002]
[1761893135521,1.08019999,3830.1,3830.0,0.002]
[1761893136340,0.4893,3830.1,3830.0,1.82967624]
[1761893136537,0.58929999,3830.1,3830.0,1.82967624]
[1761893136754,0.09999999,3830.1,3830.0,1.82967624]
[1761893138023,0.09999999,3830.3,3830.1,1.82758136]
[1761893138223,0.59089999,3830.3,3830.2,1.8275808]
[1761893138446,0.58929999,3830.3,3830.2,1.9579808]
[1761893138644,0.58929999,3830.3,3830.2,0.1304]
[1761893139454,0.58929999,3830.3,3830.2,1.9579808]
[1761893140355,0.09999999,3830.3,3830.2,2.30020924]
[1761893142336,0.58929999,3830.3,3830.2,1.9579808]
[1761893142925,1.08019999,3830.3,3830.2,1.9579808]
[1761893144869,0.58929999,3830.3,3830.2,1.9579808]
[1761893145645,0.09999999,3830.3,3830.2,1.9579808]
[1761893147854,0.59189999,3830.5,3830.4,1.82748538]
[1761893148254,0.59029999,3830.5,3830.4,1.95788538]
[1761893148455,0.10099999,3830.5,3830.4,1.95788538]
[1761893148985,0.59029999,3830.5,3830.4,1.95788538]
[1761893149464,0.001,3830.5,3830.4,2.33904276]
[1761893150055,0.001,3830.5,3830.4,2.36514969]
[1761893153661,0.001,3830.5,3830.4,2.33904276]
[1761893154055,0.001,3830.5,3830.4,2.36514969]
[1761893154295,0.001,3830.5,3830.4,9.83236088]
[1761893154498,0.001,3830.5,3830.4,10.08135795]
[1761893154720,0.001,3830.5,3830.4,10.21175795]
[1761893158336,0.001,3830.5,3830.4,3.60832276]
[1761893159488,0.001,3830.5,3830.4,3.63442969]
[1761893159707,0.001,3830.5,3830.4,3.60832276]
[1761893160196,0.001,3830.5,3830.4,3.71289641]
[1761893160812,0.001,3830.5,3830.4,3.73900334]
[1761893161221,0.001,3830.5,3830.4,4.14450734]
[1761893163701,0.001,3830.9,3830.8,1.82729455]
[1761893164041,0.001,3830.9,3830.8,3.73240849]
[1761893165100,0.001,3830.9,3830.8,3.8369693]
[1761893166833,0.001,3830.9,3830.8,9.90450049]
[1761893167201,0.001,3830.9,3830.8,9.79993968]
[1761893168424,0.001,3830.9,3830.8,9.93033968]
[1761893169440,0.001,3831.3,3831.2,1.82710377]
[1761893169640,0.001,3831.3,3831.2,3.73217934]
[1761893169843,0.001,3831.3,3831.2,3.86257934]
[1761893170546,0.4845,3831.3,3831.2,3.86257934]
[1761893171327,0.001,3831.3,3831.2,3.86257934]
[1761893172817,0.001,3831.3,3831.2,2.46289934]
[1761893173213,0.001,3831.3,3831.2,2.48900082]
[1761893174247,0.001,3831.3,3831.2,2.46289934]
[1761893174748,0.4845,3831.3,3831.2,2.46289934]
[1761893175151,0.001,3831.3,3831.2,2.46289934]
[1761893175366,0.001,3831.3,3831.2,9.38733065]
[1761893187917,0.452,3832.0,3831.2,9.38733065]
[1761893187918,0.452,3832.0,3831.9,1.82677]
[1761893188211,0.452,3832.2,3832.1,1.82667466]
[1761893188387,0.01,3832.7,3832.6,1.82643636]
[1761893188589,0.01,3832.7,3832.6,1.95683636]
[1761893188794,0.4891,3832.7,3832.6,1.95683636]
[1761893188993,0.9411,3832.7,3832.6,1.95683636]
[1761893189394,0.4891,3832.7,3832.6,7.86253094]
[1761893189597,0.4891,3832.7,3832.6,2.33777963]
[1761893189598,0.9411,3832.7,3832.6,2.33777963]
[1761893191118,0.9421,3832.7,3832.6,2.33777963]
[1761893191318,0.9421,3832.7,3832.2,1.826627]
[1761893191319,0.09999999,3832.3,3832.2,1.826627]
[1761893191616,0.57909999,3832.3,3832.2,1.826627]
[1761893191815,1.03109999,3832.3,3832.2,1.826627]
[1761893195744,1.03109999,3832.3,3832.2,2.19195925]
[1761893196041,1.03109999,3832.3,3832.2,1.826627]
[1761893201322,1.03109999,3832.3,3832.2,1.957027]
[1761893203163,0.57909999,3832.3,3832.2,1.957027]
[1761893203342,0.09999999,3832.6,3832.5,1.82648401]
[1761893203663,0.09999999,3832.6,3832.5,1.85257663]
[1761893203830,0.57909999,3832.6,3832.5,1.98297663]
[1761893204030,1.03109999,3832.6,3832.5,1.98297663]
[1761893205863,0.4791,3832.6,3832.5,1.98297663]
[1761893206161,1.03109999,3832.6,3832.5,1.98297663]
[1761893206461,1.03109999,3832.6,3832.5,1.95688401]
[1761893206849,0.9311,3832.6,3832.5,1.95688401]
[1761893207055,1.03109999,3832.6,3832.5,1.95688401]
[1761893207481,0.9311,3832.6,3832.5,1.95688401]
[1761893207680,1.03109999,3832.6,3832.5,1.95688401]
[1761893207896,0.9311,3832.6,3832.5,1.95688401]
[1761893208083,1.03109999,3832.6,3832.5,1.95688401]
[1761893208757,0.9311,3832.6,3832.5,1.95688401]
[1761893209360,1.03109999,3832.6,3832.5,1.95688401]
[1761893209558,1.03209999,3832.6,3832.5,1.95688401]
[1761893210491,0.9321,3832.6,3832.5,1.95688401]
[1761893210973,1.03209999,3832.6,3832.5,1.95688401]
[1761893212394,0.9321,3832.6,3832.5,1.95688401]
[1761893212594,1.03209999,3832.6,3832.5,1.95688401]
[1761893212992,0.9321,3832.6,3832.5,1.95688401]
[1761893213304,1.03209999,3832.6,3832.5,1.95688401]
[1761893215075,0.9321,3832.6,3832.5,1.95688401]
[1761893215280,1.03209999,3832.6,3832.5,1.95688401]
[1761893217966,1.03209999,3832.6,3832.5,0.1304]
[1761893218180,0.09999999,3832.3,3831.4,1.39968]
[1761893218503,0.09999999,3832.3,3831.8,1.82680977]
[1761893218703,0.4995,3832.2,3832.0,1.82667811]
[1761893218871,0.09999999,3832.1,3832.0,1.82667811]
[1761893219070,0.55209999,3832.1,3832.0,1.82667811]
[1761893219274,1.05159999,3832.1,3832.0,1.82667811]
[1761893221014,1.05159999,3832.1,3831.6,0.69464313]
[1761893221015,1.05159999,3832.1,3831.6,0.002]
[1761893221187,0.6453,3831.7,3831.6,1.82890629]
[1761893221392,0.6453,3831.7,3831.6,4.10392005]
[1761893221593,1.1448,3831.7,3831.6,4.10392005]
[1761893221792,1.1448,3831.7,3831.6,0.002]
[1761893222522,0.09999999,3831.1,3830.6,0.13638852]
[1761893222850,1.56968618,3831.7,3830.5,0.002]
[1761893222851,0.09999999,3830.6,3830.5,0.002]
[1761893222998,0.74529999,3830.6,3830.5,0.002]
[1761893223195,1.24479999,3830.6,3830.5,0.002]
[1761893223826,1.55200983,3830.6,3830.5,0.002]
[1761893224035,1.24479999,3830.6,3830.5,0.002]
[1761893225032,1.24479999,3830.6,3830.5,1.82943767]
[1761893226750,1.24479999,3830.6,3830.5,0.002]
[1761893227258,1.24479999,3830.6,3830.0,3.22933288]
[1761893227259,0.09999999,3830.3,3830.0,1.40168]
[1761893227551,0.4521,3830.2,3830.0,0.002]
[1761893227718,0.9516,3830.2,3830.0,0.002]
[1761893228151,0.9516,3830.2,3830.1,0.1424]
[1761893230231,0.9516,3830.2,3830.1,0.012]
[1761893231067,3.20406698,3830.2,3830.1,0.012]
[1761893231286,3.54751368,3830.2,3830.1,0.012]
[1761893233610,1.71993288,3830.2,3830.1,0.012]
[1761893233771,0.9516,3830.2,3830.1,0.012]
[1761893235641,0.9516,3830.2,3830.1,1.83962852]
[1761893236255,1.05159999,3830.2,3830.1,1.83962852]
[1761893236471,1.05159999,3830.2,3830.1,0.012]
[1761893238758,1.07098217,3830.2,3830.1,0.012]
[1761893239084,1.37387363,3830.2,3830.1,0.012]
[1761893239884,1.05159999,3830.2,3830.1,0.012]
[1761893245916,0.55209999,3830.2,3830.1,1.83962852]
[1761893246114,0.55209999,3830.2,3830.1,0.012]
[1761893248819,0.09999999,3830.2,3830.1,1.83962852]
[1761893249688,0.56019999,3830.2,3830.1,0.012]
[1761893249890,1.05679999,3830.2,3830.1,0.012]
[1761893251130,0.09999999,3830.2,3830.1,1.83962852]
[1761893251291,0.09999999,3830.2,3830.1,6.34521288]
[1761893251799,0.56019999,3830.2,3830.1,6.47561288]
[1761893253238,0.56019999,3830.2,3830.1,0.1424]
[1761893253534,1.05679999,3830.2,3830.1,0.1424]
[1761893253738,0.56019999,3830.2,3830.1,1.97002852]
[1761893256642,0.09999999,3830.2,3830.1,2.82707038]
[1761893256852,0.001,3830.5,3830.4,1.82748538]
[1761893257020,0.001,3830.5,3830.4,6.33306974]
[1761893257228,1e-08,3830.9,3830.8,1.82729455]
[1761893257430,0.01938218,3832.3,3830.9,4.50558436]
[1761893257632,0.01938218,3832.3,3831.0,4.50558436]
[1761893257633,0.1907,3831.9,3831.0,4.50558436]
[1761893257952,0.01938218,3831.8,3831.0,4.50558436]
[1761893258154,0.4966,3831.7,3831.0,4.50558436]
[1761893258355,0.4966,3831.7,3831.3,1.82705463]
[1761893258857,0.4602,3831.4,3831.3,1.82705463]
[1761893259059,0.4602,3831.4,3831.0,4.50558436]
[1761893259223,0.4966,3831.3,3831.0,4.50558436]
[1761893259419,0.4966,3831.3,3831.2,1.82710157]
[1761893259833,0.9568,3831.3,3831.2,1.82710157]
[1761893261053,0.9568,3831.3,3830.6,1.82738246]
[1761893261256,0.4966,3831.2,3830.4,5.90526436]
[1761893261457,0.4966,3831.5,3831.0,4.50558436]
[1761893261669,0.4966,3831.5,3831.2,1.82708049]
[1761893262270,0.4966,3831.5,3831.0,4.50558436]
[1761893262271,0.4602,3831.3,3831.1,1.82714693]
[1761893262482,0.4602,3831.1,3830.7,4.50558436]
[1761893262654,0.4966,3831.2,3831.0,1.82719916]
[1761893262849,0.4966,3831.1,3831.0,1.82719916]
[1761893263080,0.9568,3831.1,3830.7,4.50558436]
[1761893263974,0.9568,3831.1,3831.0,1.82719916]
[1761893265183,0.4602,3831.1,3831.0,1.82719916]
[1761893268601,0.001,3831.3,3831.2,1.82710377]
[1761893268971,0.4612,3831.3,3831.2,1.95750377]
[1761893269298,0.001,3831.3,3831.2,1.98360525]
[1761893269868,0.001,3831.3,3831.2,1.95750377]
[1761893281110,0.001,3831.3,3831.2,0.1304]
[1761893281408,0.9583,3831.3,3831.2,0.1304]
[1761893281595,0.9583,3831.3,3830.4,4.50558436]
[1761893281770,0.9583,3831.3,3830.9,0.1304]
[1761893281977,0.9583,3831.3,3831.0,1.82719916]
[1761893282208,0.001,3831.3,3831.2,1.82710377]
[1761893282376,0.001,3831.3,3831.2,1.95750377]
[1761893282988,0.001,3831.3,3831.2,0.1304]
[1761893283389,0.001,3831.3,3831.2,1.95750377]
[1761893287119,0.001,3831.3,3831.2,0.1304]
[1761893287321,0.9583,3831.3,3831.2,0.1304]
[1761893288727,0.9583,3831.3,3830.9,0.002]
[1761893288892,0.4603,3831.0,3830.9,0.002]
[1761893289091,0.9573,3831.0,3830.9,0.002]
[1761893290428,0.001,3831.3,3831.2,1.82710377]
[1761893290909,0.001,3831.3,3831.2,1.95750377]
[1761893294437,0.001,3831.3,3831.2,0.1304]
[1761893294638,0.9583,3831.3,3831.2,0.1304]
[1761893295424,0.9583,3831.3,3831.2,1.95750377]
[1761893296029,0.4613,3831.3,3831.2,1.95750377]
[1761893296229,0.001,3831.3,3831.2,6.46308813]
[1761893296546,0.001,3831.3,3831.2,1.95750377]
[1761893297036,0.001,3831.3,3831.2,11.6151813]
[1761893297199,0.001,3831.3,3831.2,7.10959694]
[1761893297397,0.001,3831.3,3831.2,8.12888195]
[1761893297609,0.001,3831.3,3831.2,9.52856195]
[1761893303351,0.001,3831.3,3831.2,4.00369258]
[1761893303546,0.001,3831.3,3831.2,9.52856195]
[1761893306430,0.001,3831.3,3831.2,9.63312276]
[1761893318960,0.001,3831.7,3831.6,8.7514624]
[1761893319284,0.001,3831.7,3831.6,9.94927471]
[1761893319652,0.001,3831.7,3831.6,10.55977471]
[1761893322702,0.001,3831.7,3831.6,10.83487871]
[1761893323017,0.001,3832.6,3832.0,1.82672233]
[1761893323219,0.001,3832.6,3832.5,8.88143338]
[1761893323384,0.001,3832.6,3832.5,9.95223196]
[1761893324210,0.4624,3832.6,3832.5,10.05675725]
[1761893324419,0.9415,3832.6,3832.5,10.05675725]
[1761893324715,0.4624,3832.6,3832.5,10.05675725]
[1761893324917,0.001,3832.6,3832.5,10.05675725]
[1761893328926,0.4624,3832.6,3832.5,10.05675725]
[1761893329101,0.9415,3832.6,3832.5,1.53008]
[1761893329307,0.9415,3832.6,3832.5,3.35656401]
[1761893330229,0.9415,3832.6,3832.5,1.53008]
[1761893331002,0.9415,3832.6,3832.5,0.1304]
[1761893331403,0.96088218,3832.6,3832.0,0.1304]
[1761893331609,0.4616,3832.1,3832.0,0.1304]
[1761893331915,0.9137,3832.1,3831.9,0.1304]
[1761893332116,0.01938218,3832.0,3831.9,0.1304]
[1761893332412,0.93308218,3832.0,3831.9,0.1304]
[1761893332631,0.4616,3832.0,3831.9,1.95717]
[1761893332799,0.9137,3832.0,3831.9,1.95717]
[1761893333294,0.9137,3832.0,3831.6,5.52486937]
[1761893333493,0.6584,3831.7,3831.3,1.39968]
[1761893333726,0.6584,3831.7,3831.6,1.82691303]
[1761893333925,0.1968,3831.7,3831.6,1.82691303]
[1761893334229,0.6584,3831.7,3831.6,1.82691303]
[1761893334429,1.1105,3831.7,3831.6,1.82691303]
[1761893336732,1.1105,3831.7,3831.5,0.002]
[1761893336939,0.93308218,3831.6,3831.5,0.002]
[1761893338331,1.22874803,3831.6,3831.5,0.002]
[1761893338518,0.93308218,3831.6,3831.5,0.002]
[1761893339248,0.9137,3831.6,3831.5,0.002]
[1761893339940,1.319204,3831.6,3831.5,0.002]
[1761893340145,0.405504,3831.5,3831.1,0.002]
[1761893340306,0.4616,3831.2,3831.1,0.002]
[1761893340507,0.59545862,3831.2,3831.1,0.002]
[1761893340702,1.04755862,3831.2,3831.1,0.002]
[1761893341704,1.45306262,3831.2,3831.1,0.002]
[1761893341904,3.29954857,3831.2,3831.1,0.002]
[1761893342133,1.4724448,3831.2,3831.1,0.002]
[1761893342542,3.29954857,3831.2,3831.1,0.002]
[1761893343931,1.4724448,3831.2,3831.1,0.002]
[1761893345124,1.45306262,3831.2,3831.1,0.002]
[1761893345759,1.17795862,3831.2,3831.1,0.002]
[1761893345925,1.17795862,3831.2,3831.1,0.00592277]
[1761893349866,1.0441,3831.2,3831.1,0.00592277]
[1761893350073,0.9137,3831.2,3831.1,0.00592277]
[1761893351755,1.319204,3831.2,3831.1,0.00592277]
[1761893351973,1.33858618,3831.2,3831.1,0.00592277]
[1761893352332,3.16568995,3831.2,3831.1,0.00592277]
[1761893352559,3.48235895,3831.2,3831.1,0.00592277]
[1761893353059,1.65525518,3831.2,3831.1,0.00592277]
[1761893353265,3.48235895,3831.2,3831.1,0.00592277]
[1761893356645,1.65525518,3831.2,3831.1,0.00592277]
[1761893356849,1.33858618,3831.2,3831.1,0.00592277]
[1761893357272,3.16568995,3831.2,3831.1,0.00592277]
[1761893358601,1.33858618,3831.2,3831.1,0.00592277]
[1761893358781,0.93308218,3831.2,3831.1,0.00592277]
[1761893359104,1.33858618,3831.2,3831.1,0.00592277]
[1761893360697,2.10579637,3831.2,3831.1,0.00592277]
[1761893361617,3.93290014,3831.2,3831.1,0.00592277]
[1761893362486,3.52739614,3831.2,3831.1,0.00592277]
[1761893362666,2.10579637,3831.2,3831.1,0.00592277]
[1761893366219,3.93290014,3831.2,3831.1,0.00592277]
[1761893367725,2.10579637,3831.2,3831.1,0.00592277]
[1761893368521,3.93290014,3831.2,3831.1,0.00592277]
[1761893369619,1.22881019,3831.2,3831.1,0.00592277]
[1761893369834,0.4616,3831.2,3831.1,0.00592277]
[1761893370006,0.48098218,3831.2,3831.1,0.00592277]
[1761893370510,0.94888218,3831.2,3831.1,0.00592277]
[1761893374449,0.48098218,3831.2,3831.1,0.00592277]
[1761893374851,0.94888218,3831.2,3831.1,0.00592277]
[1761893375539,0.48098218,3831.2,3831.1,0.00592277]
[1761893375845,0.26331985,3831.2,3831.1,0.00592277]
[1761893376052,0.01938218,3831.2,3831.1,0.00592277]
[1761893377143,0.01938218,3831.2,3831.1,0.03502277]
[1761893378657,0.01938218,3831.2,3831.1,0.00592277]
[1761893378658,0.49098218,3831.2,3831.1,0.00592277]
[1761893379453,0.02038218,3831.5,3831.1,0.00592277]
[1761893379615,0.01938218,3831.3,3831.1,0.03502277]
[1761893379816,0.01938218,3831.3,3831.1,0.0311]
[1761893380041,0.01938218,3831.3,3831.1,0.002]
[1761893380464,0.48728218,3831.3,3831.1,0.002]
[1761893380682,0.01938218,3831.2,3831.1,0.002]
[1761893380850,0.49098218,3831.2,3831.1,0.002]
[1761893382079,0.01938218,3831.3,3831.1,0.002]
[1761893382246,0.02038218,3831.5,3831.2,0.0291]
[1761893382948,0.02038218,3831.5,3831.2,0.05524929]
[1761893383285,0.02038218,3831.5,3831.2,0.0291]
[1761893383584,0.02038218,3831.5,3831.3,0.02614929]
[1761893384007,0.001,3831.5,3831.3,0.02614929]
[1761893384184,0.01938218,3831.4,3831.3,0.02614929]
[1761893384371,0.001,3831.5,3831.4,0.0291]
[1761893384974,0.001,3831.5,3831.4,0.05524731]
[1761893385483,0.001,3831.5,3831.4,6.98162604]
[1761893385683,0.001,3831.5,3831.4,7.01072604]
[1761893386185,0.001,3831.5,3831.4,2.50527303]
[1761893387291,0.001,3831.5,3831.4,0.15654731]
[1761893390174,0.001,3831.5,3831.4,2.01265571]
[1761893390374,0.001,3831.5,3831.4,6.52106141]
[1761893392502,0.001,3831.5,3831.4,7.92074141]
[1761893393316,0.001,3831.5,3831.4,3.3861884]
[1761893393516,0.001,3831.5,3831.4,4.35826017]
[1761893394085,0.001,3831.5,3831.4,2.95858017]
[1761893395439,0.001,3831.5,3831.4,2.98768017]
[1761893395814,0.001,3831.5,3831.4,2.95858017]
[1761893398821,0.001,3831.5,3831.4,2.92948017]
[1761893399541,0.4738,3831.5,3831.4,1.10247177]
[1761893399744,0.9547,3831.5,3831.4,0.1304]
[1761893400509,0.001,3831.5,3831.4,0.1304]
[1761893400705,0.9547,3831.5,3831.4,0.1304]
[1761893401332,0.001,3831.5,3831.4,0.1304]
[1761893401542,0.001,3831.5,3831.4,1.9574084]
[1761893402021,0.4738,3831.5,3831.4,0.1304]
[1761893402221,0.9547,3831.5,3831.4,0.1304]
[1761893405144,0.9547,3831.5,3831.4,1.9574084]
[1761893405748,0.001,3831.5,3831.4,1.9865084]
[1761893406256,0.001,3831.5,3831.4,1.9574084]
[1761893407370,0.9547,3831.5,3831.4,0.1304]
[1761893408522,0.001,3831.5,3831.4,1.9574084]
[1761893408722,0.001,3831.5,3831.4,2.18244924]
[1761893408923,0.001,3831.5,3831.4,6.71400237]
[1761893409123,0.001,3831.5,3831.4,6.71700225]
[1761893409328,0.001,3831.5,3831.4,6.68790225]
[1761893414583,0.001,3831.5,3831.4,6.71700225]
[1761893418016,0.001,3831.5,3831.4,2.28701333]
[1761893418578,0.001,3831.5,3831.4,2.31611333]
[1761893422712,0.001,3831.5,3831.4,2.28701333]
[1761893423897,0.001,3831.5,3831.4,2.28901333]